Cogmind - Beta 13 @@@ ROGUE MODE // 2024.04.02 @ 00:46:51 Player: Olafz Result: Destroyed by S-10 Pest with Light Assault Rifle Performance ------------- Evolutions (1) 500 Regions Visited (3) 600 Robots Destroyed (9) 45 Value Destroyed (289) 289 Prototype IDs (0) 0 Alien Tech Used (0) 0 Bonus (0) 0 TOTAL SCORE: 1434 Bonus ------- None Cogmind --------- Core Integrity 0/400 Matter 300/300 Energy 100/100 System Corruption 1% Temperature Cool (0) Movement Core (50) Location -9/Storage Parts ------- > --- POWER (1) -------- (None) > --- PROPULSION (3) --- (None) > --- UTILITY (3) ------ Visual Processing Unit Signal Interpreter > --- WEAPON (2) ------- (None) > --- INVENTORY (5) ---- Ion Engine Peak State ------------ > --- POWER ------------ Light Ion Engine > --- PROPULSION ------- Flight Unit Flight Unit > --- UTILITY ---------- Visual Processing Unit Sensor Array Signal Interpreter > --- WEAPON ----------- Light Assault Rifle Light Assault Rifle > --- INVENTORY -------- Ion Engine Flight Unit Flight Unit Flight Unit [Rating: 9] Favorites ----------- Power Light Ion Engine Engine Light Ion Engine Propulsion Flight Unit Leg Aluminum Leg Flight Unit Flight Unit Utility Visual Processing Unit Device Heat Sink Storage Small Storage Unit Processor Visual Processing Unit Weapon Light Assault Rifle Energy Gun Beam Rifle Ballistic Gun Light Assault Rifle Build | -11 -10 -9 -9 ------- Run | Yrd Mat Mat Sto Slots Evolved 2 | . . 2 . Power . | . . . . Propulsion 1 | . . 1 . Utility 1 | . . 1 . Weapon . | . . . . Parts Attached 23 | 7 7 3 6 Power 3 | 1 1 . 1 Engine 3 | 1 1 . 1 Core . | . . . . Reactor . | . . . . Propulsion 8 | 2 2 2 2 Treads . | . . . . Leg 2 | 2 . . . Wheel . | . . . . Hover . | . . . . Flight 6 | . 2 2 2 Utility 6 | 1 2 1 2 Device 2 | . . 1 1 Storage 1 | 1 . . . Processor 3 | . 2 . 1 Hackware . | . . . . Protection . | . . . . Artifact . | . . . . Weapon 6 | 3 2 . 1 Energy Gun 2 | 1 . . 1 Energy Cannon . | . . . . Ballistic Gun 4 | 2 2 . . Ballistic Cannon . | . . . . Launcher . | . . . . Special Weapon . | . . . . Impact Weapon . | . . . . Slashing Weapon . | . . . . Piercing Weapon . | . . . . Special Melee Weapon . | . . . . Unidentified Prototypes . | . . . . Parts Lost 13 | . . 2 11 Power 2 | . . 1 1 Propulsion 5 | . . 1 4 Utility 3 | . . . 3 Weapon 3 | . . . 3 Highest Loss Streak 6 | . . 2 6 To Critical Strikes . | . . . . Average Slot Usage (%) 62 | . 83 77 52 Engine 6 | . 10 5 4 Leg 2 | . 7 . . Flight 19 | . 18 16 19 Device 2 | . . 11 3 Storage 1 | . 3 . . Processor 13 | . 14 22 13 Energy Gun 2 | . . . 4 Ballistic Gun 14 | . 28 22 7 Naked Turns . | . . . . Heaviest Build 13 | 13 13 6 7 Greatest Support 20 | 20 20 12 12 Greatest Overweight (x) 1 | . . . 1 Average Overweight (x) . | . . . . Largest Inventory Capacity 8 | 8 8 5 5 Average Capacity 5 | 7 5 5 5 Most Carried 5 | 1 5 4 2 Average Carried 2 | . 3 3 1 Final Capacity 8 | 8 5 5 5 Final Carried 5 | 1 5 2 1 Class Distribution -------------------- 92% | Mutant 7% | Scout Dominant Class ---------------- Mutant | -10/Materials Scout | -9/Materials Mutant | -9/Storage Resources | -11 -10 -9 -9 ----------- Run | Yrd Mat Mat Sto Matter Collected 436 | 168 31 51 186 Remotely . | . . . . Salvage Created 338 | . 31 51 256 Parts 29 | . 7 5 17 Haulers Intercepted . | . . . . Recyclers Shooed . | . . . . Parts Field Recycled . | . . . . Retrieved Matter . | . . . . Parts Self-Destructed . | . . . . Prevented . | . . . . Kills | -11 -10 -9 -9 ------- Run | Yrd Mat Mat Sto Combat Hostiles Destroyed 5 | . . 1 4 Guns 5 | . . 1 4 Classes Destroyed 3 | . 2 1 . Operator 2 | . 1 . 1 Watcher 2 | . 1 . 1 Sentry 5 | . . 1 4 Best Kill Streak 2 | . 1 1 2 Combat Bots Only 1 | . . 1 1 Max Kills in Single Turn 1 | . 1 1 1 Gunslinging . | . . . . Exploded . | . . . . Melee . | . . . . Uniques/NPCs Destroyed . | . . . . Combat | -11 -10 -9 -9 -------- Run | Yrd Mat Mat Sto Hostile Shots Fired 148 | . 28 8 112 Missed 62 | . 13 2 47 Damage Taken 1111 | . 201 90 820 Core 460 | . 52 32 376 Absorbed by Shields . | . . . . Core Remaining (%) 89 | 100 79 . . Volleys Fired 64 | . 8 5 51 Largest 2 | . 2 2 2 Hottest 76 | . 40 40 76 Shots Fired 87 | . 16 10 61 Gun 87 | . 16 10 61 Cannon . | . . . . Launcher . | . . . . Special . | . . . . Kinetic 67 | . 16 10 41 Thermal 20 | . . . 20 Explosive . | . . . . Electromagnetic . | . . . . Robot Hit Streak 13 | . 3 6 13 Robot Miss Streak 2 | . 2 1 2 Penetration Max . | . . . . Secondary Targets . | . . . . Shots Hit Robots 61 | . 7 8 46 Core Hits 23 | . 4 3 16 Critical Kills . | . . . . Critical Parts Destroyed . | . . . . Critical Strikes 4 | . . . 4 Burn 4 | . . . 4 Melee Attacks . | . . . . Impact . | . . . . Slashing . | . . . . Piercing . | . . . . Sneak Attacks . | . . . . Combat Hostiles . | . . . . Follow-up Attacks . | . . . . Damage Inflicted 622 | . 71 63 488 Guns 587 | . 71 63 453 Cannons . | . . . . Explosions . | . . . . Melee . | . . . . Ramming 35 | . . . 35 Kinetic 354 | . 71 63 220 Thermal 233 | . . . 233 Explosive . | . . . . Electromagnetic . | . . . . Impact . | . . . . Slashing . | . . . . Piercing . | . . . . Highest Corruption 1 | . . . 1 Average Corruption 1 | . . . 1 Corruption Purged . | . . . . Corruption Blocked . | . . . . Effects 2 | . . . 2 Energy Discharges 1 | . . . 1 Parts Rejected 1 | . . . 1 Overload Shots . | . . . . Overflow Damage . | . . . . Projectiles . | . . . . Explosions . | . . . . Melee . | . . . . Knockbacks 1 | . . . 1 Impact 1 | . . . 1 Kinetic . | . . . . Secondary . | . . . . Self-Inflicted Damage 17 | . . . 17 Shots . | . . . . Rammed 7 | . . . 7 Targets Rammed 7 | . . . 7 Kicked . | . . . . Crushed . | . . . . Highest Temperature 65 | . 40 8 65 Average Temperature 21 | . 11 5 28 Received Heat Transfer 381 | . 117 27 237 Siege Activations . | . . . . Robots Corrupted . | . . . . Combat Hostiles . | . . . . Parts Fried . | . . . . Impact Corruptions . | . . . . Robots Melted . | . . . . Combat Hostiles . | . . . . Parts Melted 3 | . . . 3 Heat Transferred 888 | . . . 888 Parts Sabotaged . | . . . . Parts Stolen . | . . . . Parts Stripped . | . . . . Power Chain Reactions . | . . . . Alert | -11 -10 -9 -9 ------- Run | Yrd Mat Mat Sto Peak Influence 248 | . 87 76 248 Initial 36 | . . 36 31 Average 81 | . 11 50 137 Maximum Alert Level 1 | . . . 1 Low Security (%) 78 | 100 100 100 60 Level 1 21 | . . . 39 Level 2 . | . . . . Level 3 . | . . . . Level 4 . | . . . . Level 5 . | . . . . High Security . | . . . . Max Security . | . . . . Squads Dispatched 2 | . 1 . 1 Investigation . | . . . . Extermination . | . . . . Reinforcement 2 | . 1 . 1 Assault . | . . . . Garrison . | . . . . Intercept . | . . . . Searches Triggered . | . . . . Construction Impeded . | . . . . Haulers Reinforced . | . . . . Active Scanning Responses . | . . . . Cargo Convoy Interrupts . | . . . . Stealth | -11 -10 -9 -9 --------- Run | Yrd Mat Mat Sto Distress Signals 5 | . 1 . 4 Communications Jammed . | . . . . Distress Signals . | . . . . Times Spotted 35 | . 9 1 25 Peak Tracking Total 12 | . 5 2 12 Tactical Retreats 5 | . 2 1 2 Traps | -11 -10 -9 -9 ------- Run | Yrd Mat Mat Sto Traps Triggered 1 | . . . 1 Indirectly . | . . . . Trap Hack Attempts . | . . . . Triggered . | . . . . Disarmed . | . . . . Reprogrammed . | . . . . Reused . | . . . . Traps Extracted . | . . . . Installed . | . . . . Triggered . | . . . . Machines | -11 -10 -9 -9 ---------- Run | Yrd Mat Mat Sto Machines Disabled . | . . . . Max in Single Turn . | . . . . Machines Repaired . | . . . . Machines Dismantled . | . . . . Machines Sabotaged . | . . . . Overloaded Fab Kills . | . . . . Hacking | -11 -10 -9 -9 --------- Run | Yrd Mat Mat Sto Machines Accessed . | . . . . Terminals . | . . . . Fabricators . | . . . . Repair Stations . | . . . . Recycling Units . | . . . . Scanalyzers . | . . . . Garrison Access . | . . . . Total Hacks . | . . . . Successful . | . . . . Failed . | . . . . Catastrophic . | . . . . Database Lockouts . | . . . . Manual . | . . . . Terminals . | . . . . Fabricators . | . . . . Repair Stations . | . . . . Recycling Units . | . . . . Scanalyzers . | . . . . Garrison Access . | . . . . Terminal Hacks . | . . . . Fabricator Hacks . | . . . . Repair Station Hacks . | . . . . Recycling Unit Hacks . | . . . . Scanalyzer . | . . . . Garrison Access Hacks . | . . . . Unauthorized Hacks . | . . . . Terminals . | . . . . Fabricators . | . . . . Repair Stations . | . . . . Recycling Units . | . . . . Scanalyzers . | . . . . Garrison Access . | . . . . Data Cores Recovered . | . . . . Used . | . . . . Hacking Detections . | . . . . Full Trace Events . | . . . . Feedback Events . | . . . . Feedback Blocked . | . . . . Robot Schematics Acquired . | . . . . Robots Built . | . . . . Authchips . | . . . . Time . | . . . . Total Robot Build Rating . | . . . . Part Schematics Acquired . | . . . . Parts Built . | . . . . Authchips . | . . . . Time . | . . . . Total Part Build Rating . | . . . . Parts Repaired . | . . . . Time . | . . . . Parts Recycled . | . . . . Recycled Matter . | . . . . Retrieved Matter . | . . . . Retrieved Components . | . . . . Parts Scanalyzed . | . . . . Part Schematics Acquired . | . . . . Parts Damaged . | . . . . Bothacking | -11 -10 -9 -9 ------------ Run | Yrd Mat Mat Sto Used RIF Installer . | . . . . Robots Hacked . | . . . . Non-combat . | . . . . Combat . | . . . . Robot Hacks Applied . | . . . . Relay Couplers Released . | . . . . Fabnet Peak Effective % . | . . . . Robots Rewired . | . . . . Allies Hacked . | . . . . Hacks Repelled . | . . . . Allies | -11 -10 -9 -9 -------- Run | Yrd Mat Mat Sto Total Allies . | . . . . Largest Group . | . . . . Highest-Rated Group . | . . . . Highest-Rated Ally . | . . . . Total Orders . | . . . . Ally Attacks . | . . . . Total Damage . | . . . . Kills . | . . . . Allies Corrupted . | . . . . Allies Melted . | . . . . Intel | -11 -10 -9 -9 ------- Run | Yrd Mat Mat Sto Robot Analysis Total . | . . . . Derelict Logs Recovered . | . . . . Drone Launches . | . . . . Drone Recoveries . | . . . . Exploration | -11 -10 -9 -9 ------------- Run | Yrd Mat Mat Sto Turns Passed 482 | 75 116 25 266 Spaces Moved 598 | 57 143 25 373 Core 74 | 5 4 . 65 Treads . | . . . . Legs 78 | 52 26 . . Wheels . | . . . . Hover . | . . . . Flight 446 | . 113 25 308 Fastest Speed 34 | 50 37 34 34 Average Speed 49 | 113 52 37 39 Slowest Speed 120 | 120 120 40 100 Overloaded Moves . | . . . . Propulsion Burnouts . | . . . . Robots Hopped 2 | . 2 . . Cave-ins Triggered . | . . . . Exploration Rate (%) 26 | 4 42 4 57 Regions Visited 3 Branch Regions 1 Pre-discovered Areas . | . . . . Known Exits Taken 2 | . 1 1 . Unknown Exits Taken 1 | 1 . . . Scrap Searched . | . . . . Spaces Dug . | . . . . Terrain Destroyed . | . . . . Melee . | . . . . Projectile . | . . . . AOE . | . . . . Terrain Rammed . | . . . . Walls Destroyed . | . . . . Machines Disabled . | . . . . Actions | -11 -10 -9 -9 --------- Run | Yrd Mat Mat Sto Total 702 | 64 169 32 437 Wait . | . . . . Move 591 | 56 138 24 373 Hop 2 | . 2 . . Pick Up 4 | . 4 . . Fast Attach 18 | 7 6 . 5 Attach 4 | . . 3 1 Detach 5 | 1 4 . . Swap 1 | . 1 . . Drop 6 | . 6 . . Fire 64 | . 8 5 51 Melee . | . . . . Ram 7 | . . . 7 Kick . | . . . . Crush . | . . . . Escape Stasis . | . . . . Rewire . | . . . . Trap . | . . . . Miscellaneous . | . . . . Route ------- -11/Scrapyard -10/Materials -9/Materials -9/Storage History --------- Turn | Location | Event 7 | -11/Scrapyard | Discovered new exit (range 15) 76 | -11/Scrapyard | Entered Materials 184 | -10/Materials | Discovered new exit (range 18) 191 | -10/Materials | Identified exit to Materials 192 | -10/Materials | Entered another Materials area 192 | -9/Materials | Evolved 2 slots: Propulsion x1, Utility x1 200 | -9/Materials | Discovered new exit (range 6) 217 | -9/Materials | Identified exit to Storage 217 | -9/Materials | Entered Storage 302 | -9/Storage | Lost 6 parts (1p2n2u1w) 425 | -9/Storage | Core integrity fell below 50% 426 | -9/Storage | Lost 4 parts (1p2n1w) 478 | -9/Storage | Core integrity fell below 20% 483 | -9/Storage | Destroyed by S-10 Pest with Light Assault Rifle Last Messages --------------- 00422_ Y-45 Defender destroyed. 00432_ W-16 Scout sends out distress signal. 00439_ W-16 Scout destroyed. 00440_ Flight Unit destroyed. 00441_ K-01 Serf collects debris. 00444_ Beam Rifle destroyed. 00446_ K-01 Serf collects debris. 00446_ Acquired Signal Interpreter. 00447_ Slammed into A-02 Transporter. 00456_ Heat Sink destroyed. 00457_ Slammed into K-01 Serf. 00457_ K-01 Serf knocked back. 00459_ Slammed into K-01 Serf. 00461_ K-01 Serf cleans the Terminal. 00465_ Slammed into K-01 Serf. 00468_ W-16 Scout sends out distress signal. 00481_ Slammed into S-10 Pest. 00482_ Destabilizing: System interference. 00482_ Visual Processing Unit temporarily disabled. 00483_ Slammed into S-10 Pest. Map ----- +----------------------------------------------------+ | ?????????????????????????????????????? | | ?????????????????????????????????????? | | ?????????????????????????????????????? | | ?????????????????????????????????????? | | ?????????????????????????????????????? | | ?????????????????????????????????????? | | ?????????????????????????????????????? | | ?????????????????????????????????????? | | ?????????????????????????????????????? | | ?????????????????????????????????????? | | ?????????????????????????????????????? | | ?????????????????????????????????????? | | ?????????????????????????????????????? | | ?????????????????????????????????????? | | ?????????????????????????????########? | | ???? ???????????????????????# #? | | ???? ##?????????????????????# #? | | ???+ ?????????????????????# """ #? | | ???# ?????????????????????# """ #? | | ???# #?????????????????????# """ #? | | ???# #?????????????######??# #? | | #### #?????????????# ####+##+##?? | | #?????????????# + s #??? | | #?????????????# # #??? | | #?????????????# # #??? | | #?????????????# s@/% #??? | | #?????????????# g# #######??? | | #?????????????# # #????????? | | #?????????????# / #????????? | | #?????????????# # #????????? | | #?????????????###### ##???????? | | ################### #???????? | | % % % T / =!??? | | ################### # =!!#? | | % # #???????????## ## =!!#? | | ### # #????????????# #??######? | | ??# ## #????????????# #????????? | | ### ## #???????????? #????????? | | #"" ## #???????????? #????????? | | #T ## #???????????? #????????? | | ### ## #???????????? +????????? | | ## ###########?? ?????????? | | #### + ## #?? ?????????? | | ???# ## ## """ #?? ?????????? | | ???#=%#? ## """ #?? ?????????? | | ??##!=## ? ## """ #?? ?????????? | | ??# ##+##### #?? ?????????? | | ??# # """ #?????????????? | | ??# # """ #?????????????? | | ??# ##### + """ #?????????????? | +----------------------------------------------------+ Best States ------------- Heat Dissipation 38 Energy Generation 10 Energy Capacity 250 Matter Stores 300 Matter Capacity 300 Sight Range 18 Robot Scan Range 14 Terrain Scan Density 10 Evasion (%) 63 Item Schematics ----------------- None Robot Schematics ------------------ None Fabricated ------------ Nothing Alien Tech Used ----------------- None Achievements -------------- None Challenges ------------ None Game ------ Seed ThiefSingularityLoader Manual? 0 Play Time 00:10:09 Cumulative 11.3 hours Start 2024.04.02 @ 00:37:26 End 2024.04.02 @ 00:46:51 Sessions 1 Manual Loads 0 Difficulty Rogue Special Mode None Game No. 35 Rogue 33 Adventurer 2 Explorer 0 Win Type - Total 0 Types 0/0/0/0/0/0/0/0/0 Lore% 15 Gallery% 16 Achievement% 16 Wizard Run 0 Options --------- Layout 0 ASCII 0 Keyboard 1 Movement Arrows Keybinds 0 Fullscreen 2 Font 18/SmallcapsGlow Map View 76x50 Zoom Use 0% Tactical HUD 1 Map Filters NONE Filters NONE Steam 1 RUN: 7c08d174-1db7-4539-bd7a-4345a8246ef0